[Event "Early-Titled-Tuesday-Blitz-January-16-2024"]
[Site "Chess.com"]
[Date "2024.01.16"]
[Round "10"]
[White "artin10862"]
[Black "Grischuk"]
[Result "1/2-1/2"]
[WhiteElo "2929"]
[BlackElo "3082"]
[TimeControl "180+1"]
[EndTime "9:59:30 PST"]
[Termination "Game drawn by repetition"]

1. d4 {[%clk 0:03:00.9]} 1... e6 {[%clk 0:03:00.3]} 2. c4 {[%clk 0:02:58]} 2...
b6 {[%clk 0:03:00.4]} 3. g3 {[%clk 0:02:50]} 3... Bb7 {[%clk 0:03:00]} 4. Nf3
{[%clk 0:02:50.5]} 4... Bb4+ {[%clk 0:02:58.5]} 5. Bd2 {[%clk 0:02:48.8]} 5...
Bxf3 {[%clk 0:02:57.7]} 6. exf3 {[%clk 0:02:48.7]} 6... Bxd2+ {[%clk 0:02:58.2]}
7. Qxd2 {[%clk 0:02:49.2]} 7... Ne7 {[%clk 0:02:58.8]} 8. Nc3 {[%clk 0:02:45.8]}
8... d5 {[%clk 0:02:56.7]} 9. cxd5 {[%clk 0:02:37]} 9... Nxd5 {[%clk 0:02:56.9]}
10. Bc4 {[%clk 0:02:35]} 10... Nxc3 {[%clk 0:02:37.7]} 11. bxc3 {[%clk
0:02:31.6]} 11... O-O {[%clk 0:02:36.5]} 12. O-O {[%clk 0:02:31.3]} 12... Nc6
{[%clk 0:02:35.8]} 13. f4 {[%clk 0:02:25.7]} 13... Na5 {[%clk 0:02:31.9]} 14.
Bd3 {[%clk 0:02:25.7]} 14... g6 {[%clk 0:02:24.7]} 15. Qe2 {[%clk 0:02:22.7]}
15... Qd6 {[%clk 0:02:17.4]} 16. Rfd1 {[%clk 0:02:17]} 16... Rad8 {[%clk
0:02:10.4]} 17. h4 {[%clk 0:02:16.3]} 17... c5 {[%clk 0:02:07.9]} 18. Be4 {[%clk
0:02:14.9]} 18... Rfe8 {[%clk 0:01:36.6]} 19. Qa6 {[%clk 0:01:53.7]} 19... cxd4
{[%clk 0:01:25.7]} 20. Qxa7 {[%clk 0:01:43]} 20... Qc5 {[%clk 0:01:22.9]} 21.
cxd4 {[%clk 0:01:37.2]} 21... Rxd4 {[%clk 0:01:23.8]} 22. Rxd4 {[%clk
0:01:34.2]} 22... Qxd4 {[%clk 0:01:24.7]} 23. Re1 {[%clk 0:01:34.1]} 23... Nc4
{[%clk 0:01:11.3]} 24. Qa4 {[%clk 0:01:12.6]} 24... Rd8 {[%clk 0:01:09.6]} 25.
Bg2 {[%clk 0:01:05.2]} 25... Qc3 {[%clk 0:00:56.4]} 26. Rd1 {[%clk 0:00:59.6]}
26... Rxd1+ {[%clk 0:00:53.9]} 27. Qxd1 {[%clk 0:01:00.5]} 27... Nd2 {[%clk
0:00:51]} 28. Qa4 {[%clk 0:00:47.1]} 28... Kg7 {[%clk 0:00:50.2]} 29. Qd7 {[%clk
0:00:38.6]} 29... h5 {[%clk 0:00:34.2]} 30. Bc6 {[%clk 0:00:32.3]} 30... Qa1+
{[%clk 0:00:26.2]} 31. Kh2 {[%clk 0:00:29.7]} 31... Qxa2 {[%clk 0:00:19.4]} 32.
Qd4+ {[%clk 0:00:25.5]} 32... Kg8 {[%clk 0:00:19.4]} 33. Qd8+ {[%clk 0:00:19.7]}
33... Kg7 {[%clk 0:00:19.6]} 34. Qd4+ {[%clk 0:00:19.6]} 34... Kg8 {[%clk
0:00:19.4]} 35. Qxb6 {[%clk 0:00:17.6]} 35... Qc2 {[%clk 0:00:17]} 36. Bg2
{[%clk 0:00:15.1]} 36... Nb3 {[%clk 0:00:11.5]} 37. Qe3 {[%clk 0:00:13.9]} 37...
Nc5 {[%clk 0:00:09.7]} 38. Bf3 {[%clk 0:00:11.3]} 38... Qc4 {[%clk 0:00:07.2]}
39. Kg2 {[%clk 0:00:11]} 39... Qb4 {[%clk 0:00:05.6]} 40. Qe2 {[%clk 0:00:09.2]}
40... Nd7 {[%clk 0:00:04.8]} 41. Qd3 {[%clk 0:00:07.9]} 41... Nf6 {[%clk
0:00:04.1]} 42. Qe3 {[%clk 0:00:08.1]} 42... Qd6 {[%clk 0:00:03.5]} 43. Qe2
{[%clk 0:00:07.4]} 43... Nd7 {[%clk 0:00:03.4]} 44. Qb2 {[%clk 0:00:07.3]} 44...
Nf8 {[%clk 0:00:02.5]} 45. Qf6 {[%clk 0:00:07.2]} 45... Nh7 {[%clk 0:00:02]} 46.
Qc3 {[%clk 0:00:07.3]} 46... Nf8 {[%clk 0:00:02.5]} 47. Qa5 {[%clk 0:00:07.6]}
47... Nh7 {[%clk 0:00:02.6]} 48. Be4 {[%clk 0:00:05.7]} 48... Kg7 {[%clk
0:00:02.8]} 49. Qc3+ {[%clk 0:00:05.8]} 49... Kg8 {[%clk 0:00:03.1]} 50. Bf3
{[%clk 0:00:04.8]} 50... Nf8 {[%clk 0:00:03.5]} 51. Be4 {[%clk 0:00:04.8]} 51...
Nh7 {[%clk 0:00:03.7]} 52. Qc8+ {[%clk 0:00:05.1]} 52... Kg7 {[%clk 0:00:03.9]}
53. Bf3 {[%clk 0:00:05.3]} 53... Qd4 {[%clk 0:00:03.7]} 54. Qc7 {[%clk
0:00:04.8]} 54... Nf6 {[%clk 0:00:03.8]} 55. Qc2 {[%clk 0:00:04.4]} 55... Nd5
{[%clk 0:00:03.6]} 56. Qe2 {[%clk 0:00:04.6]} 56... Nc3 {[%clk 0:00:03.2]} 57.
Qe1 {[%clk 0:00:04.2]} 57... Nb5 {[%clk 0:00:02.6]} 58. Qe2 {[%clk 0:00:04.3]}
58... Nc3 {[%clk 0:00:02.3]} 59. Qe1 {[%clk 0:00:04.9]} 59... Nd5 {[%clk
0:00:02.6]} 60. Qe2 {[%clk 0:00:04.9]} 60... Ne7 {[%clk 0:00:02.9]} 61. Qe4
{[%clk 0:00:04.5]} 61... Nf5 {[%clk 0:00:02.9]} 62. Qe2 {[%clk 0:00:03.8]} 62...
Qc3 {[%clk 0:00:02.5]} 63. Be4 {[%clk 0:00:04]} 63... Nd6 {[%clk 0:00:01.8]} 64.
Bf3 {[%clk 0:00:03.9]} 64... Qd4 {[%clk 0:00:01.8]} 65. Qa6 {[%clk 0:00:03.6]}
65... Nf5 {[%clk 0:00:01.9]} 66. Qe2 {[%clk 0:00:03.9]} 66... Ne7 {[%clk
0:00:02.2]} 67. Be4 {[%clk 0:00:04.1]} 67... Ng8 {[%clk 0:00:02.1]} 68. Bf3
{[%clk 0:00:04]} 68... Nf6 {[%clk 0:00:02.7]} 69. Qe1 {[%clk 0:00:04.5]} 69...
Ng8 {[%clk 0:00:03]} 70. Qe2 {[%clk 0:00:04.9]} 70... Nh6 {[%clk 0:00:03.5]} 71.
Qe1 {[%clk 0:00:05]} 71... Nf5 {[%clk 0:00:03.2]} 72. Qe2 {[%clk 0:00:05.5]}
1/2-1/2

[Event "Early-Titled-Tuesday-Blitz-January-16-2024"]
[Site "Chess.com"]
[Date "2024.01.16"]
[Round "10"]
[White "rikchessmx"]
[Black "Journey_to_GrandMaster_YT"]
[Result "0-1"]
[WhiteElo "2353"]
[BlackElo "2518"]
[TimeControl "180+1"]
[EndTime "9:59:33 PST"]
[Termination "Journey_to_GrandMaster_YT won by resignation"]

1. e4 {[%clk 0:03:00.9]} 1... d6 {[%clk 0:03:00.9]} 2. d4 {[%clk 0:03:00.7]}
2... Nf6 {[%clk 0:03:01.6]} 3. Nc3 {[%clk 0:03:01.5]} 3... e5 {[%clk 0:03:00.8]}
4. Bc4 {[%clk 0:02:59.6]} 4... Be7 {[%clk 0:02:54.4]} 5. Nge2 {[%clk 0:02:59]}
5... O-O {[%clk 0:02:52.8]} 6. f3 {[%clk 0:02:58.9]} 6... c6 {[%clk 0:02:53.3]}
7. Bb3 {[%clk 0:02:58.7]} 7... b5 {[%clk 0:02:51]} 8. a3 {[%clk 0:02:58.4]} 8...
Bb7 {[%clk 0:02:50.5]} 9. Be3 {[%clk 0:02:57.9]} 9... a5 {[%clk 0:02:50.5]} 10.
Qd2 {[%clk 0:02:57.5]} 10... Nbd7 {[%clk 0:02:49.5]} 11. g4 {[%clk 0:02:56.7]}
11... b4 {[%clk 0:02:45.3]} 12. Nd1 {[%clk 0:02:54.7]} 12... exd4 {[%clk
0:02:44.4]} 13. Nxd4 {[%clk 0:02:52.9]} 13... c5 {[%clk 0:02:44.2]} 14. Nf5
{[%clk 0:02:51.7]} 14... Ne5 {[%clk 0:02:44.4]} 15. Qg2 {[%clk 0:02:44.9]} 15...
Nexg4 {[%clk 0:02:11.8]} 16. fxg4 {[%clk 0:02:39.3]} 16... Bxe4 {[%clk
0:02:11.1]} 17. Qg1 {[%clk 0:02:38.6]} 17... Bxh1 {[%clk 0:02:10.9]} 18. Qxh1
{[%clk 0:02:37.7]} 18... Re8 {[%clk 0:01:59.7]} 19. Qf3 {[%clk 0:02:33.6]} 19...
d5 {[%clk 0:01:48.9]} 20. Kf1 {[%clk 0:02:17.8]} 20... c4 {[%clk 0:01:46.1]} 21.
Ba2 {[%clk 0:02:17.5]} 21... Qc7 {[%clk 0:01:39.2]} 22. Bd4 {[%clk 0:02:07.3]}
22... Qxh2 {[%clk 0:01:21.4]} 23. Nxe7+ {[%clk 0:02:05]} 23... Rxe7 {[%clk
0:01:20.8]} 24. Bxf6 {[%clk 0:02:05.3]} 24... gxf6 {[%clk 0:01:17.8]} 25. Nf2
{[%clk 0:02:04.8]} 25... Qe5 {[%clk 0:01:06.2]} 26. Rd1 {[%clk 0:02:02.4]} 26...
Qxb2 {[%clk 0:00:15.4]} 27. Qxd5 {[%clk 0:01:57.1]} 27... Rae8 {[%clk
0:00:10.1]} 28. Bxc4 {[%clk 0:01:56.3]} 28... Qxc2 {[%clk 0:00:09.8]} 29. axb4
{[%clk 0:01:46.3]} 29... axb4 {[%clk 0:00:10.1]} 30. g5 {[%clk 0:01:34.7]} 30...
Qg6 {[%clk 0:00:09.2]} 31. gxf6 {[%clk 0:01:31.5]} 31... Qxf6 {[%clk 0:00:09]}
32. Kg2 {[%clk 0:01:09]} 32... Kh8 {[%clk 0:00:08.9]} 33. Qd4 {[%clk 0:01:04.9]}
33... Rg8+ {[%clk 0:00:08.2]} 34. Kf1 {[%clk 0:01:04.2]} 34... Qxd4 {[%clk
0:00:05.7]} 35. Rxd4 {[%clk 0:01:03.7]} 35... Rb8 {[%clk 0:00:04.9]} 36. Bb3
{[%clk 0:01:03.2]} 36... Rc7 {[%clk 0:00:03.9]} 37. Nd1 {[%clk 0:00:59.1]} 37...
Rc6 {[%clk 0:00:02.5]} 38. Ke2 {[%clk 0:00:59]} 38... Re6+ {[%clk 0:00:02.8]}
39. Kd3 {[%clk 0:00:58.4]} 39... Rc6 {[%clk 0:00:02.8]} 40. Rd7 {[%clk
0:00:53.7]} 40... Rcc8 {[%clk 0:00:02.9]} 41. Rxf7 {[%clk 0:00:51.8]} 41... Rd8+
{[%clk 0:00:03.4]} 42. Ke2 {[%clk 0:00:51.8]} 42... Re8+ {[%clk 0:00:03.8]} 43.
Ne3 {[%clk 0:00:51.4]} 43... Rf8 {[%clk 0:00:03.8]} 44. Rd7 {[%clk 0:00:49.5]}
44... Rbd8 {[%clk 0:00:04]} 45. Rb7 {[%clk 0:00:48.6]} 45... Rd4 {[%clk
0:00:04.3]} 46. Bc2 {[%clk 0:00:47.4]} 46... Rh4 {[%clk 0:00:02.9]} 47. Kd3
{[%clk 0:00:43.1]} 47... Rd8+ {[%clk 0:00:02.6]} 48. Ke2 {[%clk 0:00:43.2]}
48... Rh2+ {[%clk 0:00:02.8]} 49. Kf3 {[%clk 0:00:43]} 49... Rh3+ {[%clk
0:00:03.1]} 50. Ke2 {[%clk 0:00:41.1]} 50... Re8 {[%clk 0:00:03]} 51. Rxb4
{[%clk 0:00:21.1]} 51... Rhxe3+ {[%clk 0:00:03.1]} 52. Kd2 {[%clk 0:00:21.3]}
52... R3e7 {[%clk 0:00:03.2]} 53. Bd3 {[%clk 0:00:20.5]} 53... Rd8 {[%clk
0:00:03.6]} 54. Rh4 {[%clk 0:00:19.7]} 54... Red7 {[%clk 0:00:03.4]} 55. Rh3
{[%clk 0:00:19.7]} 55... Re7 {[%clk 0:00:03]} 56. Kc2 {[%clk 0:00:19.5]} 56...
Rc7+ {[%clk 0:00:03]} 57. Kd2 {[%clk 0:00:19]} 57... Rg7 {[%clk 0:00:03.5]} 58.
Kc2 {[%clk 0:00:19.1]} 58... Rc8+ {[%clk 0:00:04.1]} 59. Kd1 {[%clk 0:00:19]}
59... Rcg8 {[%clk 0:00:03.9]} 60. Kc2 {[%clk 0:00:18.5]} 60... Rd8 {[%clk
0:00:03.7]} 61. Kc3 {[%clk 0:00:18.5]} 61... Kg8 {[%clk 0:00:03.8]} 62. Bc4+
{[%clk 0:00:17]} 62... Kh8 {[%clk 0:00:04.1]} 63. Bd3 {[%clk 0:00:17]} 63...
Rc7+ {[%clk 0:00:03.3]} 64. Kd2 {[%clk 0:00:17.2]} 64... Kg8 {[%clk 0:00:03.6]}
65. Ke2 {[%clk 0:00:16.4]} 65... Rd6 {[%clk 0:00:03.2]} 66. Kf2 {[%clk
0:00:15.3]} 66... Rg7 {[%clk 0:00:02.7]} 67. Ke2 {[%clk 0:00:15]} 67... h6
{[%clk 0:00:03.2]} 68. Bc4+ {[%clk 0:00:14.6]} 68... Kf8 {[%clk 0:00:03.2]} 69.
Rf3+ {[%clk 0:00:14.1]} 69... Ke8 {[%clk 0:00:03.7]} 70. Rh3 {[%clk 0:00:14.2]}
70... Re7+ {[%clk 0:00:03.7]} 71. Kf3 {[%clk 0:00:12.8]} 71... Rc6 {[%clk
0:00:02.5]} 72. Bd3 {[%clk 0:00:12.4]} 72... Rc3 {[%clk 0:00:02.4]} 73. Kf4
{[%clk 0:00:11.6]} 73... Rf7+ {[%clk 0:00:02.2]} 74. Ke5 {[%clk 0:00:11.7]}
74... Re7+ {[%clk 0:00:02.1]} 75. Kd6 {[%clk 0:00:11.8]} 75... Rd7+ {[%clk
0:00:02.3]} 76. Ke6 {[%clk 0:00:11.7]} 76... Rdxd3 {[%clk 0:00:01.7]} 77. Rxh6
{[%clk 0:00:11.4]} 77... Rc6+ {[%clk 0:00:02]} 0-1

[Event "Early-Titled-Tuesday-Blitz-January-16-2024"]
[Site "Chess.com"]
[Date "2024.01.16"]
[Round "10"]
[White "K_A_S_T_O_R"]
[Black "GMWSO"]
[Result "1/2-1/2"]
[WhiteElo "2922"]
[BlackElo "3076"]
[TimeControl "180+1"]
[EndTime "9:59:40 PST"]
[Termination "Game drawn by repetition"]

1. e4 {[%clk 0:03:00.9]} 1... c5 {[%clk 0:02:54.8]} 2. Nf3 {[%clk 0:03:00.3]}
2... e6 {[%clk 0:02:54.9]} 3. d4 {[%clk 0:03:00.1]} 3... cxd4 {[%clk 0:02:55.8]}
4. Nxd4 {[%clk 0:03:00.6]} 4... Nc6 {[%clk 0:02:56.3]} 5. Nb5 {[%clk 0:03:00.5]}
5... d6 {[%clk 0:02:55]} 6. c4 {[%clk 0:03:00.5]} 6... Nf6 {[%clk 0:02:53]} 7.
N1c3 {[%clk 0:03:00.3]} 7... a6 {[%clk 0:02:53.1]} 8. Na3 {[%clk 0:03:00.9]}
8... Be7 {[%clk 0:02:50.7]} 9. Be2 {[%clk 0:03:00.9]} 9... O-O {[%clk
0:02:49.8]} 10. O-O {[%clk 0:03:01.5]} 10... b6 {[%clk 0:02:48.7]} 11. Be3
{[%clk 0:03:01.5]} 11... Bb7 {[%clk 0:02:47.5]} 12. Rc1 {[%clk 0:03:01.4]} 12...
Re8 {[%clk 0:02:35.5]} 13. Qd2 {[%clk 0:02:58.9]} 13... Nb4 {[%clk 0:02:10.9]}
14. f3 {[%clk 0:02:38]} 14... d5 {[%clk 0:01:56.2]} 15. cxd5 {[%clk 0:02:32.7]}
15... exd5 {[%clk 0:01:57.1]} 16. e5 {[%clk 0:02:26.5]} 16... d4 {[%clk
0:01:56.8]} 17. Bxd4 {[%clk 0:02:06.2]} 17... Nc6 {[%clk 0:01:37.3]} 18. exf6
{[%clk 0:01:53.7]} 18... Bxf6 {[%clk 0:01:23.1]} 19. Be3 {[%clk 0:01:21.2]}
19... Rxe3 {[%clk 0:01:23.1]} 20. Rfd1 {[%clk 0:01:06.1]} 20... Qxd2 {[%clk
0:01:15.9]} 21. Rxd2 {[%clk 0:01:05.3]} 21... Bg5 {[%clk 0:01:13.5]} 22. Rcd1
{[%clk 0:01:01.6]} 22... Rae8 {[%clk 0:01:08.9]} 23. Rd7 {[%clk 0:00:56.4]}
23... R3e7 {[%clk 0:01:04.2]} 24. Rxe7 {[%clk 0:00:55.4]} 24... Bxe7 {[%clk
0:01:03.9]} 25. Nc4 {[%clk 0:00:52.1]} 25... Rd8 {[%clk 0:00:52.9]} 26. Nd5
{[%clk 0:00:45.1]} 26... Bc5+ {[%clk 0:00:50.9]} 27. Kf1 {[%clk 0:00:45.6]}
27... b5 {[%clk 0:00:45.7]} 28. Nce3 {[%clk 0:00:28.6]} 28... Kf8 {[%clk
0:00:41.3]} 29. Nc2 {[%clk 0:00:26.4]} 29... Ne5 {[%clk 0:00:31.4]} 30. Nc3
{[%clk 0:00:26.2]} 30... Rxd1+ {[%clk 0:00:31.6]} 31. Nxd1 {[%clk 0:00:26.8]}
31... Ke7 {[%clk 0:00:30.9]} 32. a3 {[%clk 0:00:26.8]} 32... f5 {[%clk
0:00:26.3]} 33. Nde3 {[%clk 0:00:25.9]} 33... f4 {[%clk 0:00:23]} 34. Nf5+
{[%clk 0:00:24.4]} 34... Kf6 {[%clk 0:00:22.8]} 35. Nfd4 {[%clk 0:00:25]} 35...
Bd5 {[%clk 0:00:20.4]} 36. Nb4 {[%clk 0:00:20.6]} 36... Bb7 {[%clk 0:00:16]} 37.
Ndc2 {[%clk 0:00:20.5]} 37... g5 {[%clk 0:00:14]} 38. Nd3 {[%clk 0:00:21]} 38...
Bd6 {[%clk 0:00:13.7]} 39. Nxe5 {[%clk 0:00:17.5]} 39... Bxe5 {[%clk 0:00:14.6]}
40. b4 {[%clk 0:00:17.4]} 40... Bd5 {[%clk 0:00:13.8]} 41. Bd3 {[%clk
0:00:17.5]} 41... h5 {[%clk 0:00:13.9]} 42. h3 {[%clk 0:00:16.6]} 42... Bb2
{[%clk 0:00:13.3]} 43. Ke2 {[%clk 0:00:16.8]} 43... Ke5 {[%clk 0:00:13.3]} 44.
Kd2 {[%clk 0:00:16.8]} 44... Bb3 {[%clk 0:00:13.1]} 45. Bg6 {[%clk 0:00:16.3]}
45... h4 {[%clk 0:00:11.5]} 46. Be4 {[%clk 0:00:16.4]} 46... Bc4 {[%clk
0:00:11.5]} 47. Bb7 {[%clk 0:00:14.9]} 47... Bf1 {[%clk 0:00:11.6]} 48. Ne1
{[%clk 0:00:14.9]} 48... Bxa3 {[%clk 0:00:11.7]} 49. Kc3 {[%clk 0:00:15.1]}
49... Kd6 {[%clk 0:00:09.5]} 50. Bxa6 {[%clk 0:00:14.2]} 50... Kc7 {[%clk
0:00:10]} 51. Nc2 {[%clk 0:00:13.7]} 51... Bc1 {[%clk 0:00:09.8]} 52. Nd4 {[%clk
0:00:13.9]} 52... Kb6 {[%clk 0:00:08.9]} 53. Bc8 {[%clk 0:00:13.6]} 53... Bxg2
{[%clk 0:00:09.2]} 54. Ne2 {[%clk 0:00:11.9]} 54... Be3 {[%clk 0:00:07.9]} 55.
Bg4 {[%clk 0:00:12.8]} 55... Bf1 {[%clk 0:00:07]} 56. Nd4 {[%clk 0:00:13.1]}
56... Bf2 {[%clk 0:00:07.4]} 57. Ne6 {[%clk 0:00:12.6]} 57... Bc4 {[%clk
0:00:06.9]} 58. Kd2 {[%clk 0:00:10.9]} 58... Kc6 {[%clk 0:00:04.6]} 59. Nxg5
{[%clk 0:00:10.2]} 59... Be3+ {[%clk 0:00:05]} 60. Kc3 {[%clk 0:00:10.3]} 60...
Kd6 {[%clk 0:00:04.7]} 61. Ne4+ {[%clk 0:00:10.5]} 61... Ke5 {[%clk 0:00:05.1]}
62. Nd2 {[%clk 0:00:11.1]} 62... Be2 {[%clk 0:00:04.4]} 63. Nb3 {[%clk
0:00:10.4]} 63... Bc4 {[%clk 0:00:04.2]} 64. Nd2 {[%clk 0:00:10.1]} 64... Bxd2+
{[%clk 0:00:04.3]} 65. Kxd2 {[%clk 0:00:10.2]} 65... Kd4 {[%clk 0:00:05.2]} 66.
Bd7 {[%clk 0:00:10.5]} 66... Bf1 {[%clk 0:00:04.3]} 67. Be6 {[%clk 0:00:10.4]}
67... Bg2 {[%clk 0:00:02.9]} 68. Ke2 {[%clk 0:00:10.3]} 68... Kc3 {[%clk
0:00:03]} 69. Kf2 {[%clk 0:00:10.4]} 69... Bh1 {[%clk 0:00:03.4]} 70. Bg4 {[%clk
0:00:11]} 70... Kxb4 {[%clk 0:00:03.8]} 71. Kg1 {[%clk 0:00:11.7]} 71... Kc3
{[%clk 0:00:04.2]} 72. Kxh1 {[%clk 0:00:11.8]} 72... b4 {[%clk 0:00:05.1]} 73.
Bf5 {[%clk 0:00:12.2]} 73... b3 {[%clk 0:00:05.6]} 74. Kg2 {[%clk 0:00:12.9]}
74... b2 {[%clk 0:00:05.7]} 75. Kf2 {[%clk 0:00:13.3]} 75... Kd2 {[%clk
0:00:06.2]} 76. Bg6 {[%clk 0:00:13.6]} 76... Kd1 {[%clk 0:00:06.6]} 77. Bf5
{[%clk 0:00:13.3]} 77... Kd2 {[%clk 0:00:07.2]} 78. Be4 {[%clk 0:00:13.6]} 78...
Kd1 {[%clk 0:00:08.1]} 79. Bb1 {[%clk 0:00:12.2]} 79... Kd2 {[%clk 0:00:09]} 80.
Kf1 {[%clk 0:00:12.1]} 80... Kd1 {[%clk 0:00:09.9]} 81. Kf2 {[%clk 0:00:12.2]}
81... Kd2 {[%clk 0:00:10.8]} 82. Be4 {[%clk 0:00:12.1]} 82... Kd1 {[%clk
0:00:11.7]} 83. Bf5 {[%clk 0:00:11.8]} 83... Kd2 {[%clk 0:00:12.6]} 1/2-1/2

[Event "Early-Titled-Tuesday-Blitz-January-16-2024"]
[Site "Chess.com"]
[Date "2024.01.16"]
[Round "10"]
[White "Yurasova_Daria"]
[Black "DraningWaterHi"]
[Result "1-0"]
[WhiteElo "2448"]
[BlackElo "2179"]
[TimeControl "180+1"]
[EndTime "9:59:45 PST"]
[Termination "Yurasova_Daria won by checkmate"]

1. d4 {[%clk 0:02:57.3]} 1... Nf6 {[%clk 0:02:57.4]} 2. Bg5 {[%clk 0:02:57.5]}
2... d5 {[%clk 0:02:56.7]} 3. Bxf6 {[%clk 0:02:57.2]} 3... exf6 {[%clk
0:02:57.6]} 4. e3 {[%clk 0:02:57.6]} 4... c6 {[%clk 0:02:55.8]} 5. g3 {[%clk
0:02:55.8]} 5... Bd6 {[%clk 0:02:56.2]} 6. Bg2 {[%clk 0:02:56.4]} 6... f5 {[%clk
0:02:56.7]} 7. Ne2 {[%clk 0:02:57.1]} 7... Nd7 {[%clk 0:02:57.2]} 8. Nd2 {[%clk
0:02:57.9]} 8... Nf6 {[%clk 0:02:57.8]} 9. O-O {[%clk 0:02:58.1]} 9... h5 {[%clk
0:02:58.1]} 10. h4 {[%clk 0:02:57.4]} 10... Be6 {[%clk 0:02:47.2]} 11. c4 {[%clk
0:02:54.9]} 11... Qd7 {[%clk 0:02:33]} 12. Nc3 {[%clk 0:02:52.8]} 12... a6
{[%clk 0:02:18.9]} 13. cxd5 {[%clk 0:02:52.4]} 13... cxd5 {[%clk 0:02:17.3]} 14.
Rc1 {[%clk 0:02:50.1]} 14... Rc8 {[%clk 0:02:06.8]} 15. Qb3 {[%clk 0:02:43.7]}
15... Bb8 {[%clk 0:02:01]} 16. Na4 {[%clk 0:02:41.8]} 16... Rxc1 {[%clk
0:01:57.5]} 17. Rxc1 {[%clk 0:02:41.7]} 17... O-O {[%clk 0:01:58]} 18. Nc5
{[%clk 0:02:41.1]} 18... Qd6 {[%clk 0:01:41.4]} 19. Nxb7 {[%clk 0:02:38.7]}
19... Qe7 {[%clk 0:01:27.6]} 20. Nc5 {[%clk 0:02:38.4]} 20... Ne4 {[%clk
0:01:13.2]} 21. Ndxe4 {[%clk 0:02:38.3]} 21... fxe4 {[%clk 0:01:14.1]} 22. Nxa6
{[%clk 0:02:29.3]} 22... Bd6 {[%clk 0:01:05.3]} 23. Nc5 {[%clk 0:02:29.1]} 23...
Rb8 {[%clk 0:01:04.3]} 24. Qc2 {[%clk 0:02:27.1]} 24... g5 {[%clk 0:00:51.4]}
25. hxg5 {[%clk 0:02:23.7]} 25... Qxg5 {[%clk 0:00:52.3]} 26. Nxe6 {[%clk
0:02:17.5]} 26... fxe6 {[%clk 0:00:51.2]} 27. Qc6 {[%clk 0:02:17.4]} 27... Rd8
{[%clk 0:00:48.1]} 28. Qb6 {[%clk 0:02:08.9]} 28... h4 {[%clk 0:00:38]} 29. gxh4
{[%clk 0:02:02.4]} 29... Qxh4 {[%clk 0:00:34.6]} 30. Rc6 {[%clk 0:01:59.7]}
30... Rf8 {[%clk 0:00:33.7]} 31. Rc2 {[%clk 0:01:49.1]} 31... Qh2+ {[%clk
0:00:19.7]} 32. Kf1 {[%clk 0:01:48.9]} 32... Kg7 {[%clk 0:00:16]} 33. Qa6 {[%clk
0:01:41.9]} 33... Rf6 {[%clk 0:00:14.6]} 34. Qe2 {[%clk 0:01:35.2]} 34... Qh4
{[%clk 0:00:12.7]} 35. Ke1 {[%clk 0:01:27.6]} 35... Qh2 {[%clk 0:00:11.8]} 36.
Qg4+ {[%clk 0:01:26.8]} 36... Rg6 {[%clk 0:00:12.1]} 37. Qh3 {[%clk 0:01:19.2]}
37... Qxg2 {[%clk 0:00:11.9]} 38. Qxg2 {[%clk 0:01:19.6]} 38... Rxg2 {[%clk
0:00:12.8]} 39. Rc6 {[%clk 0:01:18.2]} 39... Be7 {[%clk 0:00:11.3]} 40. Kf1
{[%clk 0:01:03.7]} 40... Rg6 {[%clk 0:00:10.7]} 41. a4 {[%clk 0:01:02.8]} 41...
Kf6 {[%clk 0:00:11.1]} 42. a5 {[%clk 0:01:03]} 42... Rg8 {[%clk 0:00:11.4]} 43.
Rb6 {[%clk 0:01:00.7]} 43... Ra8 {[%clk 0:00:11.6]} 44. b4 {[%clk 0:01:01]}
44... Bd8 {[%clk 0:00:10.5]} 45. Rc6 {[%clk 0:00:46.8]} 45... Kf7 {[%clk
0:00:10.4]} 46. a6 {[%clk 0:00:44.8]} 46... Ke7 {[%clk 0:00:09.9]} 47. b5 {[%clk
0:00:42]} 47... Kd7 {[%clk 0:00:08.4]} 48. f3 {[%clk 0:00:36.9]} 48... exf3
{[%clk 0:00:07.5]} 49. Kf2 {[%clk 0:00:35.5]} 49... Rc8 {[%clk 0:00:07.9]} 50.
a7 {[%clk 0:00:30.2]} 50... Ra8 {[%clk 0:00:07.4]} 51. Ra6 {[%clk 0:00:30.9]}
51... Kc7 {[%clk 0:00:06.9]} 52. Kxf3 {[%clk 0:00:30.7]} 52... Kb7 {[%clk
0:00:07.2]} 53. Rxe6 {[%clk 0:00:23]} 53... Rxa7 {[%clk 0:00:07.6]} 54. Rd6
{[%clk 0:00:21.9]} 54... Bc7 {[%clk 0:00:08]} 55. Rxd5 {[%clk 0:00:19.7]} 55...
Ra1 {[%clk 0:00:08.9]} 56. Ke4 {[%clk 0:00:18.9]} 56... Rf1 {[%clk 0:00:09.5]}
57. Rh5 {[%clk 0:00:17.4]} 57... Kb6 {[%clk 0:00:09.6]} 58. Kd3 {[%clk
0:00:16.9]} 58... Rd1+ {[%clk 0:00:09.2]} 59. Kc4 {[%clk 0:00:14.9]} 59... Rc1+
{[%clk 0:00:09.4]} 60. Kd5 {[%clk 0:00:14.1]} 60... Kxb5 {[%clk 0:00:09.5]} 61.
e4 {[%clk 0:00:14.7]} 61... Kb6 {[%clk 0:00:09.8]} 62. e5 {[%clk 0:00:14.8]}
62... Kb7 {[%clk 0:00:10.1]} 63. Rh7 {[%clk 0:00:14.9]} 63... Kc8 {[%clk
0:00:10.3]} 64. Ke6 {[%clk 0:00:14.6]} 64... Re1 {[%clk 0:00:10.6]} 65. Rh5
{[%clk 0:00:11.1]} 65... Kb7 {[%clk 0:00:10.5]} 66. d5 {[%clk 0:00:11.3]} 66...
Kc8 {[%clk 0:00:08.6]} 67. d6 {[%clk 0:00:11.7]} 67... Bd8 {[%clk 0:00:07.1]}
68. Rh7 {[%clk 0:00:09.1]} 68... Rf1 {[%clk 0:00:07]} 69. Ra7 {[%clk 0:00:08.7]}
69... Kb8 {[%clk 0:00:06.5]} 70. Ra6 {[%clk 0:00:08.4]} 70... Kb7 {[%clk
0:00:06.5]} 71. Ra2 {[%clk 0:00:08.7]} 71... Bg5 {[%clk 0:00:02.9]} 72. Rb2+
{[%clk 0:00:06.5]} 72... Kc8 {[%clk 0:00:03.4]} 73. Rc2+ {[%clk 0:00:06.4]}
73... Kb7 {[%clk 0:00:03.4]} 74. Kd7 {[%clk 0:00:03.9]} 74... Re1 {[%clk
0:00:02.4]} 75. Rb2+ {[%clk 0:00:04]} 75... Ka6 {[%clk 0:00:02.4]} 76. e6 {[%clk
0:00:03]} 76... Bf4 {[%clk 0:00:02.1]} 77. e7 {[%clk 0:00:02.9]} 77... Rd1
{[%clk 0:00:02.1]} 78. e8=Q {[%clk 0:00:03]} 78... Rxd6+ {[%clk 0:00:03]} 79.
Kc8 {[%clk 0:00:03.1]} 79... Rd4 {[%clk 0:00:02.9]} 80. Qb5+ {[%clk 0:00:03.3]}
80... Ka7 {[%clk 0:00:03.2]} 81. Qb7# {[%clk 0:00:04.1]} 1-0